bitfinex/quotes_BTCUSD_20250422
["timestamp","ask_amount","ask_price","bid_price","bid_amount"]
[1745363840473,0.00114962,93000.0,92981.0,0.01976148]
[1745363840704,0.10830305,92999.0,92975.0,0.11608]
[1745363840948,0.00114962,92998.0,92975.0,0.11608]
[1745363841162,0.10830305,92997.0,92981.0,0.004]
[1745363841376,0.00114962,92996.0,92981.0,0.004]
[1745363841591,0.10830305,92995.0,92981.0,0.02009475]
[1745363841802,0.00114962,92994.0,92980.0,0.000849]
[1745363842005,0.10830305,92993.0,92981.0,0.01985584]
[1745363842214,0.00114962,92992.0,92980.0,0.002849]
[1745363842399,0.10830305,92991.0,92981.0,0.0197414]
[1745363842625,0.00114962,92990.0,92981.0,0.002]
[1745363842834,0.00114962,92990.0,92980.0,0.000849]
[1745363842835,0.10830305,92989.0,92980.0,0.000849]
[1745363843040,0.00114962,92988.0,92980.0,0.002849]
[1745363843256,0.10830305,92987.0,92980.0,0.002849]
[1745363843463,0.00114962,92986.0,92980.0,0.005849]
[1745363843677,0.10830305,92985.0,92980.0,0.00631102]
[1745363843860,0.00114962,92984.0,92980.0,0.00331102]
[1745363843998,0.10830305,92983.0,92980.0,0.00331102]
[1745363844203,0.00114962,92982.0,92980.0,0.00131102]
[1745363844433,0.10630305,92981.0,92980.0,0.00131102]
[1745363847852,0.10730305,92981.0,92980.0,0.00131102]
[1745363848467,0.10930305,92981.0,92980.0,0.00131102]
[1745363850942,0.11030305,92981.0,92980.0,0.00131102]
[1745363852054,0.10830305,92981.0,92980.0,0.00131102]
[1745363852514,0.11030305,92981.0,92980.0,0.00131102]
[1745363852703,0.11230305,92981.0,92980.0,0.00131102]
[1745363855096,0.006,92981.0,92980.0,0.00131102]
[1745363855555,0.006,92981.0,92980.0,0.04751102]
[1745363855759,0.006,92981.0,92980.0,0.06305187]
[1745363855952,0.006,92981.0,92980.0,0.04851102]
[1745363856485,0.004,92981.0,92980.0,0.04851102]
[1745363856704,0.001,92981.0,92980.0,0.04851102]
[1745363856894,0.002,92981.0,92980.0,0.04851102]
[1745363857335,0.002,92981.0,92980.0,0.04951102]
[1745363857730,0.001,92981.0,92980.0,0.04951102]
[1745363857933,0.001,92981.0,92974.0,0.01454085]
[1745363858147,0.002,92981.0,92970.0,0.00010959]
[1745363858607,0.10830305,92980.0,92970.0,0.00010959]
[1745363858818,0.00114962,92979.0,92970.0,0.00010959]
[1745363859027,0.10945267,92979.0,92970.0,0.00010959]
[1745363859276,0.10945267,92979.0,92974.0,0.002]
[1745363859661,0.10945267,92979.0,92970.0,0.00010959]
[1745363859900,0.10945267,92979.0,92974.0,0.001]
[1745363860336,0.10830305,92978.0,92974.0,0.001]
[1745363860541,0.00114962,92977.0,92974.0,0.002]
[1745363860741,0.10830305,92976.0,92974.0,0.002]
[1745363860960,0.00114962,92975.0,92974.0,0.002]
[1745363861179,0.10830305,92975.0,92970.0,0.00010959]
[1745363861390,0.10830305,92974.0,92970.0,0.00010959]
[1745363861600,0.10530305,92974.0,92970.0,0.00010959]
[1745363862237,0.00114962,93003.0,92970.0,0.00010959]
[1745363862444,0.10830305,93001.0,92970.0,0.00310959]
[1745363862620,0.00114962,93000.0,92970.0,0.00310959]
[1745363862800,0.10830305,92999.0,92970.0,0.00010959]
[1745363863009,0.00114962,92998.0,92970.0,0.00010959]
[1745363863231,0.10830305,92997.0,92970.0,0.00310959]
[1745363863412,0.00114962,92996.0,92971.0,0.499741]
[1745363863619,0.10830305,92995.0,92970.0,0.00410959]
[1745363863835,0.00114962,92994.0,92970.0,0.00310959]
[1745363864044,0.00114962,92994.0,92970.0,0.00410959]
[1745363864045,0.10830305,92993.0,92970.0,0.00410959]
[1745363864240,0.00114962,92992.0,92970.0,0.00410959]
[1745363864443,0.10830305,92991.0,92970.0,0.00010959]
[1745363864654,0.10830305,92991.0,92970.0,0.00110959]
[1745363864655,0.00114962,92990.0,92970.0,0.00110959]
[1745363864856,0.10830305,92989.0,92970.0,0.00310959]
[1745363865083,0.00114962,92988.0,92970.0,0.00310959]
[1745363865290,0.10830305,92987.0,92970.0,0.00110959]
[1745363865496,0.00114962,92986.0,92970.0,0.00110959]
[1745363865716,0.10830305,92985.0,92970.0,0.00310959]
[1745363865920,0.00114962,92984.0,92970.0,0.00210959]
[1745363866091,0.00114962,92984.0,92970.0,0.00110959]
[1745363866092,0.10830305,92983.0,92970.0,0.00110959]
[1745363866322,0.00114962,92982.0,92970.0,0.00310959]
[1745363866505,0.10830305,92981.0,92970.0,0.00210959]
[1745363866709,0.00114962,92980.0,92970.0,0.00310959]
[1745363866953,0.10830305,92979.0,92970.0,0.00210959]
[1745363867144,0.00114962,92978.0,92970.0,0.00210959]
[1745363867342,0.10830305,92977.0,92970.0,0.00310959]
[1745363867543,0.00114962,92976.0,92970.0,0.00110959]
[1745363867751,0.10830305,92975.0,92970.0,0.00010959]
[1745363867939,0.00114962,92974.0,92970.0,0.00210959]
[1745363868155,0.10830305,92973.0,92970.0,0.00210959]
[1745363868353,0.10830305,92973.0,92970.0,0.00010959]
[1745363868354,0.00114962,92972.0,92970.0,0.00010959]
[1745363868812,0.00114962,92972.0,92970.0,0.00210959]
[1745363869035,0.10830305,92973.0,92970.0,0.00210959]
[1745363869248,0.00114962,92995.0,92970.0,0.00010959]
[1745363869456,0.10830305,92994.0,92970.0,0.00210959]
[1745363869673,0.00114962,92993.0,92970.0,0.00310959]
[1745363869878,0.10830305,92992.0,92970.0,0.00210959]
[1745363870089,0.00114962,92991.0,92970.0,0.00310959]
[1745363870296,0.10830305,92990.0,92970.0,0.00210959]
[1745363870514,0.10830305,92990.0,92971.0,0.00215094]
[1745363870760,0.00114962,92989.0,92971.0,0.00215094]
[1745363870961,0.10830305,92988.0,92971.0,0.00215094]
[1745363871165,0.00114962,92987.0,92971.0,0.00215094]
[1745363871383,0.002,93004.0,92979.0,0.01454085]
[1745363871589,0.002,93004.0,92975.0,0.0454]
[1745363871590,0.10945267,93003.0,92975.0,0.0454]
[1745363872021,0.10945267,93003.0,92974.0,0.01454085]
[1745363872231,0.10945267,93003.0,92975.0,0.0021508]
[1745363872405,0.10945267,93003.0,92975.0,0.411124]
[1745363872610,0.10945267,93003.0,92975.0,0.155876]
[1745363872991,0.10945267,93003.0,92974.0,0.01454085]
[1745363873990,0.27439847,93000.0,92970.0,0.00010959]
[1745363874198,0.08596466,92985.0,92970.0,0.00010959]
[1745363874413,0.10945267,92984.0,92970.0,0.00010959]
[1745363874609,0.10945267,92984.0,92975.0,0.001]
[1745363875193,0.10945267,92984.0,92970.0,0.00010959]
[1745363875359,0.10945267,92984.0,92970.0,0.00210959]
[1745363876012,0.10830305,92984.0,92970.0,0.00110959]
[1745363876117,0.00114962,92983.0,92970.0,0.00110959]
[1745363876322,0.10830305,92982.0,92970.0,0.00010959]
[1745363876533,0.00114962,92981.0,92970.0,0.00010959]
[1745363876735,0.10830305,92980.0,92970.0,0.00010959]
[1745363876958,0.00114962,92979.0,92970.0,0.00010959]
[1745363877164,0.10830305,92978.0,92970.0,0.00010959]
[1745363877378,0.00114962,92977.0,92970.0,0.00010959]
[1745363877588,0.10830305,92976.0,92970.0,0.00110959]
[1745363877795,0.00114962,92975.0,92970.0,0.00110959]
[1745363878032,0.10830305,92974.0,92970.0,0.00010959]
[1745363878301,0.00114962,92973.0,92970.0,0.00010959]
[1745363878513,0.001,92978.0,92970.0,0.00010959]
[1745363878715,0.001,92981.0,92970.0,0.00010959]
[1745363878925,0.10830305,92980.0,92970.0,0.00010959]
[1745363879189,0.001,92974.0,92970.0,0.00010959]
[1745363880452,0.10830305,92974.0,92970.0,0.00010959]
[1745363880663,0.10945267,92973.0,92970.0,0.00010959]
[1745363882785,0.11045267,92973.0,92970.0,0.00010959]
[1745363883605,0.11145267,92973.0,92970.0,0.00010959]
[1745363884446,0.15670305,92971.0,92970.0,0.00010959]
[1745363884651,0.15785267,92971.0,92970.0,0.00010959]
[1745363885071,0.15670305,92971.0,92970.0,0.00010959]
[1745363885286,0.15785267,92971.0,92970.0,0.00010959]
[1745363885536,0.15885267,92971.0,92970.0,0.00010959]
[1745363885976,0.15985267,92971.0,92970.0,0.00010959]
[1745363886180,0.16786473,92971.0,92970.0,0.00010959]
[1745363886528,0.16786473,92971.0,92942.0,0.0004253]
[1745363886529,0.01075638,92968.0,92942.0,0.0004253]
[1745363886735,0.45770211,92971.0,92942.0,0.0004253]
[1745363886736,0.27439847,92952.0,92942.0,0.0004253]
[1745363886940,0.10945267,92951.0,92942.0,0.0004253]
[1745363887359,0.15600305,92948.0,92937.0,0.02042865]
[1745363887563,0.00114962,92947.0,92933.0,4.627e-05]
[1745363887766,0.10830305,92946.0,92933.0,4.627e-05]
[1745363887970,0.00114962,92945.0,92933.0,0.02052056]
[1745363888143,0.10830305,92944.0,92942.0,0.001]
[1745363888392,0.00114962,92943.0,92942.0,0.001]
[1745363888608,0.10945267,92943.0,92942.0,0.001]
[1745363889528,0.10945267,92943.0,92933.0,4.627e-05]
[1745363889748,0.10830305,92942.0,92933.0,4.627e-05]
[1745363889961,0.10830305,92939.0,92933.0,0.00304627]
[1745363890189,0.10830305,92934.0,92933.0,0.00304627]
[1745363890408,0.10945267,92934.0,92933.0,4.627e-05]
[1745363890597,0.21350802,92934.0,92933.0,0.00304627]
[1745363891038,0.41224163,92930.0,92887.0,0.0004251]
[1745363891250,0.10830305,92915.0,92888.0,0.00088739]
[1745363891456,0.11412,92914.0,92888.0,0.00088739]
[1745363891664,0.10830305,92906.0,92888.0,0.02121099]
[1745363891865,0.0961,92907.0,92888.0,0.00088739]
[1745363891866,0.41024163,92900.0,92888.0,0.00088739]
[1745363892101,0.11906823,92892.0,92888.0,0.00088739]
[1745363892312,0.10830305,92891.0,92888.0,0.00088739]
[1745363892524,0.22246305,92891.0,92888.0,0.00388739]
[1745363892743,0.22246305,92891.0,92888.0,0.00088739]
[1745363892949,0.22246305,92891.0,92888.0,0.00488739]
[1745363893159,0.22246305,92891.0,92888.0,0.00588739]
[1745363893412,0.22246305,92891.0,92888.0,0.00088739]
[1745363893629,0.10830305,92889.0,92888.0,0.00088739]
[1745363893843,0.22246305,92889.0,92888.0,0.00188739]
[1745363894496,0.22246305,92889.0,92888.0,0.00088739]
[1745363895165,0.24470936,92889.0,92888.0,0.00088739]
[1745363895403,0.22246305,92889.0,92888.0,0.00088739]
[1745363895838,0.22546305,92889.0,92888.0,0.00088739]
[1745363896058,0.22946305,92889.0,92888.0,0.00088739]
[1745363897380,0.68666305,92889.0,92888.0,0.00088739]
[1745363897592,0.68666305,92889.0,92887.0,0.00042208]
[1745363897807,0.10830305,92888.0,92887.0,0.00046829]
[1745363898031,0.52030305,92888.0,92887.0,0.00046829]
[1745363898793,0.52030305,92888.0,92887.0,0.00146829]
[1745363899065,0.52030305,92888.0,92887.0,0.00046829]
[1745363899281,0.52030305,92888.0,92887.0,0.00146829]
[1745363899483,0.52730305,92888.0,92887.0,0.00146829]
[1745363899890,0.53630305,92888.0,92887.0,0.00146829]
[1745363900534,0.58500305,92888.0,92887.0,0.00146829]
[1745363900762,0.6933061,92888.0,92887.0,0.00146829]
[1745363900952,0.6933061,92888.0,92883.0,0.01396459]
[1745363900953,0.35454085,92884.0,92883.0,0.01239135]
[1745363901155,0.8748439,92884.0,92883.0,0.01243767]
[1745363902119,0.9890439,92884.0,92883.0,0.01243767]
[1745363902326,0.9950439,92884.0,92883.0,0.01343767]
[1745363902533,0.9950439,92884.0,92850.0,0.0004255]
[1745363902534,0.61857709,92878.0,92850.0,0.0004255]
[1745363902735,0.85176305,92878.0,92877.0,0.00056428]
[1745363902909,0.51176305,92878.0,92877.0,0.00056428]
[1745363903115,0.62596305,92878.0,92877.0,0.00056428]
[1745363904385,0.98971531,92878.0,92877.0,0.00056428]
[1745363904598,0.41224163,92860.0,92809.0,0.29745371]
[1745363904826,0.10830305,92854.0,92818.0,0.00013888]
[1745363905035,0.11424,92853.0,92845.0,0.0004259]
[1745363905245,0.10830305,92852.0,92845.0,0.0004259]
[1745363905682,0.11424,92853.0,92845.0,0.0004259]
[1745363905683,0.10830305,92849.0,92845.0,0.0004259]
[1745363906316,0.10830305,92848.0,92845.0,0.0004259]
[1745363908299,0.11424,92847.0,92845.0,0.0004259]
[1745363908517,0.10830305,92846.0,92845.0,0.0004259]
[1745363908748,0.22254305,92846.0,92845.0,0.0004259]
[1745363909824,0.24499736,92846.0,92845.0,0.0004259]
[1745363910036,0.29139736,92846.0,92845.0,0.0004259]
[1745363910656,0.26994305,92846.0,92845.0,0.0004259]
[1745363910859,0.26894305,92846.0,92845.0,0.0004259]
[1745363911060,0.31734305,92846.0,92845.0,0.0004259]
[1745363911300,0.325344,92846.0,92845.0,0.0004259]
[1745363911675,0.326344,92846.0,92845.0,0.0004259]
[1745363912081,0.325344,92846.0,92845.0,0.0004259]
[1745363912293,0.330344,92846.0,92845.0,0.0004259]
[1745363913442,0.22854305,92846.0,92845.0,0.0004259]
[1745363913652,0.11430305,92846.0,92845.0,0.0004259]
[1745363914533,0.10830305,92846.0,92845.0,0.0004259]
[1745363914738,0.10830305,92846.0,92821.0,0.01454085]
[1745363914945,0.11230305,92846.0,92830.0,0.27536301]
[1745363915153,0.11230305,92846.0,92821.0,1.06929785]
[1745363915154,0.004,92846.0,92836.0,0.27536301]
[1745363915358,0.004,92846.0,92837.0,0.01669491]
[1745363915533,0.001,92846.0,92837.0,0.49710385]
[1745363915747,0.001,92846.0,92838.0,0.616133]
[1745363915971,0.002,92846.0,92839.0,0.00215394]
[1745363916172,0.002,92846.0,92839.0,0.12354994]
[1745363916455,0.1142,92865.0,92838.0,0.032292]
[1745363916661,0.10830305,92864.0,92838.0,0.032292]
[1745363916862,0.001,92846.0,92838.0,0.032292]
[1745363917079,0.10830305,92864.0,92838.0,0.032292]
[1745363917563,0.001,92846.0,92838.0,0.032292]
[1745363917781,0.002,92846.0,92838.0,0.032292]
[1745363918195,0.001,92846.0,92838.0,0.032292]
[1745363919396,0.19426771,92864.0,92838.0,0.032292]
[1745363919822,0.19426771,92864.0,92838.0,0.034292]
[1745363919823,0.001,92846.0,92838.0,0.034292]
[1745363920606,0.19426771,92864.0,92838.0,0.032292]
[1745363920796,0.19526771,92864.0,92838.0,0.033292]
[1745363921207,0.19426771,92864.0,92838.0,0.032292]
[1745363921463,0.001,92846.0,92838.0,0.001]
[1745363921993,0.10930305,92846.0,92838.0,0.001]
[1745363922756,0.10830305,92846.0,92828.0,0.35904871]
[1745363922937,0.10830305,92846.0,92838.0,0.002]
[1745363923303,0.10830305,92846.0,92828.0,0.35904871]
[1745363923656,0.10830305,92846.0,92838.0,0.002]
[1745363924271,0.10830305,92846.0,92828.0,0.35904871]
[1745363924272,0.0455,92862.0,92836.0,0.27536301]
[1745363924501,0.08596466,92864.0,92837.0,0.58399702]
[1745363924502,0.10830305,92861.0,92837.0,0.58399702]
[1745363924741,0.001,92846.0,92835.0,0.10071491]
[1745363924883,0.001,92846.0,92837.0,0.01454085]
[1745363925048,0.001,92846.0,92833.0,0.09694743]
[1745363925049,0.001,92846.0,92838.0,0.777681]
[1745363925253,0.001,92846.0,92831.0,0.08617806]
[1745363925453,0.001,92846.0,92838.0,0.032291]
[1745363925656,0.001,92846.0,92839.0,0.185513]
[1745363926350,0.00230354,92860.0,92839.0,0.185513]
[1745363926520,0.10830305,92859.0,92839.0,0.185513]
[1745363926754,0.00230354,92858.0,92839.0,0.185513]
[1745363926924,0.001,92846.0,92839.0,0.185513]
[1745363927067,0.001,92846.0,92839.0,0.187513]
[1745363927271,0.001,92846.0,92840.0,0.256436]
[1745363927478,0.11060659,92858.0,92840.0,0.256436]
[1745363927709,0.11060659,92858.0,92840.0,0.208699]
[1745363928315,0.11060659,92858.0,92839.0,0.467435]
[1745363928512,0.001,92846.0,92840.0,0.436612]
[1745363928714,0.001,92846.0,92841.0,0.38908889]
[1745363928959,0.001,92846.0,92840.0,0.002]
[1745363929155,0.001,92846.0,92841.0,0.25322]
[1745363930499,0.00230354,92863.0,92841.0,0.25322]
[1745363930802,0.001,92858.0,92840.0,0.002]
[1745363931016,0.00230354,92861.0,92841.0,0.32558]
[1745363931146,0.10830305,92860.0,92839.0,0.434622]
[1745363931363,0.1142,92882.0,92850.0,0.27536301]
[1745363931593,0.08596466,92877.0,92852.0,0.01454085]
[1745363931808,0.10830305,92876.0,92860.0,0.27536301]
[1745363932031,0.10830305,92876.0,92861.0,0.00215352]
[1745363932255,0.11060659,92876.0,92847.0,0.01454085]
[1745363932461,0.11060659,92876.0,92851.0,0.01454085]
[1745363932681,0.11060659,92876.0,92852.0,0.471008]
[1745363933494,0.08796466,92877.0,92853.0,0.00215352]
[1745363933694,0.08796466,92877.0,92854.0,0.51386485]
[1745363933888,0.08796466,92877.0,92854.0,0.01454085]
[1745363934117,0.08596466,92877.0,92853.0,0.01454085]
[1745363934323,0.11160659,92876.0,92853.0,0.239509]
[1745363934518,0.11160659,92876.0,92852.0,0.32975371]
[1745363934863,0.11060659,92876.0,92852.0,0.32775371]
[1745363934992,0.11060659,92876.0,92854.0,0.001]
[1745363936643,0.11060659,92876.0,92854.0,0.003]
[1745363936857,0.11060659,92876.0,92854.0,0.002]
[1745363937066,0.13481372,92876.0,92854.0,0.002]
[1745363937277,0.13481372,92876.0,92852.0,0.32435656]
[1745363937278,0.0458,92875.0,92852.0,0.32435656]
[1745363937472,0.11060659,92874.0,92852.0,0.32235656]
[1745363937684,0.11060659,92874.0,92840.0,0.27536301]
[1745363938224,0.0481,92873.0,92840.0,0.30765301]
[1745363938431,0.11060659,92872.0,92840.0,0.27536301]
[1745363939088,0.11060659,92872.0,92841.0,0.00215384]
[1745363939356,0.11060659,92872.0,92847.0,0.00213888]
[1745363939490,0.11060659,92872.0,92850.0,0.27536301]
[1745363940129,0.11060659,92872.0,92847.0,0.00213888]
[1745363940336,0.11060659,92872.0,92850.0,0.27536301]
[1745363940739,0.11060659,92872.0,92847.0,0.00213888]
[1745363940955,0.11160659,92872.0,92848.0,0.748102]
[1745363941364,0.36132767,92890.0,92866.0,0.0107682]
[1745363941365,0.0466526,92884.0,92866.0,0.0107682]
[1745363941578,0.0466526,92884.0,92861.0,0.01454085]
[1745363941941,0.001,92872.0,92863.0,0.01454085]
[1745363942091,0.001,92872.0,92864.0,0.572252]
[1745363942484,0.002,92872.0,92864.0,0.604533]
[1745363942716,0.08596466,92890.0,92864.0,0.032281]
[1745363942920,0.10925919,92889.0,92864.0,0.032281]
[1745363943115,0.001,92872.0,92864.0,0.032281]
[1745363943561,0.003,92872.0,92865.0,0.00215323]
[1745363943979,0.10925919,92889.0,92864.0,0.032281]
[1745363944168,0.11125919,92889.0,92864.0,0.032281]
[1745363944590,0.11125919,92889.0,92857.0,0.08615357]
[1745363944730,0.002,92872.0,92860.0,0.27536301]
[1745363945105,0.002,92872.0,92862.0,0.032283]
[1745363945325,0.002,92872.0,92847.0,0.01090928]
[1745363945326,0.11030305,92872.0,92849.0,0.32235656]
[1745363945536,0.11030305,92872.0,92854.0,0.032286]
[1745363945738,0.15505919,92871.0,92854.0,0.032286]
[1745363945953,0.20315919,92871.0,92849.0,0.32235656]
[1745363946155,0.20315919,92871.0,92850.0,0.27536301]
[1745363946372,0.20220305,92871.0,92850.0,0.73246201]
[1745363946628,0.20220305,92871.0,92851.0,0.409169]
[1745363946807,0.20220305,92871.0,92854.0,0.001]
[1745363947006,0.20220305,92871.0,92854.0,0.003]
[1745363947213,0.20220305,92871.0,92854.0,0.002]
[1745363947424,0.20220305,92871.0,92850.0,0.30764901]
[1745363947636,0.20220305,92871.0,92851.0,0.309987]
[1745363947884,0.20220305,92871.0,92851.0,0.312987]
[1745363948096,0.20220305,92871.0,92851.0,0.003]
[1745363948656,0.08596466,92867.0,92851.0,0.003]
[1745363948860,0.10925919,92866.0,92847.0,0.00013888]
[1745363949062,0.10925919,92866.0,92851.0,0.002]
[1745363949675,0.10925919,92866.0,92847.0,0.00013888]
[1745363950089,0.10925919,92866.0,92847.0,0.00413888]
[1745363950294,0.10925919,92866.0,92847.0,0.00213888]
[1745363950527,0.0939,92871.0,92856.0,0.27536301]
[1745363950726,0.0458,92878.0,92860.0,0.01076889]
[1745363950933,0.0481,92883.0,92867.0,0.01454085]
[1745363951134,0.10830305,92889.0,92868.0,0.00215318]
[1745363951483,0.0458,92892.0,92868.0,0.00215318]
[1745363951484,0.0458,92892.0,92879.0,0.27536301]
[1745363951708,0.0458,92901.0,92880.0,0.60781698]
[1745363951913,0.0458,92901.0,92881.0,0.554049]
[1745363952122,0.0481,92906.0,92882.0,0.00215287]
[1745363952326,0.002,92883.0,92882.0,0.01669372]
[1745363952527,0.0481,92906.0,92883.0,0.796959]
[1745363952739,0.003,92892.0,92884.0,0.01669362]
[1745363952940,0.003,92892.0,92882.0,0.01454085]
[1745363953148,0.003,92892.0,92882.0,0.60799885]
[1745363953353,0.003,92892.0,92884.0,0.01454085]
[1745363953692,0.004,92892.0,92882.0,0.01454085]
[1745363953894,0.004,92892.0,92882.0,0.72138685]
[1745363954308,0.004,92892.0,92884.0,0.01454085]
[1745363954466,0.004,92892.0,92883.0,0.01454085]
[1745363954714,0.004,92892.0,92866.0,0.0451]
[1745363954715,0.001,92892.0,92866.0,0.0451]
[1745363954902,0.001,92892.0,92881.0,0.01806616]
[1745363955103,0.001,92892.0,92871.0,0.02530847]
[1745363955272,0.001,92892.0,92873.0,0.10067966]
[1745363955472,0.001,92892.0,92875.0,0.01454085]
[1745363955672,0.00095614,92905.0,92877.0,0.01454085]
[1745363955934,0.10830305,92904.0,92879.0,0.01454085]
[1745363956140,0.10830305,92904.0,92878.0,0.01454085]
[1745363956141,0.00095614,92903.0,92878.0,0.01454085]
[1745363956314,0.10830305,92902.0,92880.0,0.01454085]
[1745363956733,0.10830305,92902.0,92878.0,0.01454085]
[1745363956927,0.00095614,92901.0,92880.0,0.01454085]
[1745363957260,0.00095614,92901.0,92878.0,0.01454085]
[1745363957452,0.00095614,92901.0,92880.0,0.01454085]
[1745363957682,0.10830305,92902.0,92880.0,0.01454085]
[1745363957886,0.10830305,92902.0,92878.0,0.01454085]
[1745363958094,0.10830305,92902.0,92880.0,0.01454085]
[1745363958274,0.10830305,92902.0,92880.0,0.01554085]
[1745363958452,0.00095614,92901.0,92880.0,0.01554085]
[1745363958674,0.00095614,92901.0,92879.0,0.001]
[1745363959075,0.10830305,92902.0,92879.0,0.001]
[1745363959370,0.00095614,92901.0,92879.0,0.001]
[1745363959578,0.00095614,92901.0,92878.0,0.01454085]
[1745363959755,0.10830305,92902.0,92879.0,0.002]
[1745363959959,0.10830305,92902.0,92879.0,0.001]
[1745363960408,0.00095614,92901.0,92879.0,0.002]
[1745363960602,0.0499,92899.0,92879.0,0.002]
[1745363960785,0.10925919,92898.0,92879.0,0.002]
[1745363961392,0.10925919,92898.0,92879.0,0.001]
[1745363962006,0.10925919,92898.0,92878.0,0.002]
[1745363962236,0.10925919,92898.0,92879.0,0.001]
[1745363962637,0.11125919,92898.0,92870.0,0.01454085]
[1745363962810,0.11325919,92898.0,92870.0,0.39799985]
[1745363963017,0.11325919,92898.0,92870.0,0.01454085]
[1745363963443,0.11125919,92898.0,92870.0,0.01454085]
[1745363963765,0.00095614,92898.0,92883.0,0.08612974]
[1745363963936,0.0499,92899.0,92884.0,0.00215286]
[1745363965361,0.0499,92899.0,92877.0,0.01454085]
[1745363965586,0.0509,92899.0,92877.0,0.01454085]
[1745363966021,0.0509,92899.0,92879.0,0.01454085]
[1745363966269,0.0499,92899.0,92877.0,0.01454085]
[1745363966475,0.0499,92899.0,92877.0,0.01554085]
[1745363966936,0.0499,92899.0,92877.0,0.10067538]
[1745363967152,0.0499,92899.0,92879.0,0.01454085]
[1745363967393,0.0499,92899.0,92877.0,0.01454085]
[1745363967605,0.0499,92899.0,92879.0,0.01454085]
[1745363967812,0.0499,92899.0,92880.0,0.121026]
[1745363968462,0.0499,92899.0,92870.0,0.37975158]
[1745363968463,0.0485,92889.0,92870.0,0.01824728]
[1745363968618,0.0485,92889.0,92877.0,0.001]
[1745363969007,0.0485,92897.0,92879.0,0.01454085]
[1745363969455,0.0485,92897.0,92876.0,0.01454085]
[1745363969647,0.0485,92897.0,92878.0,0.01454085]
[1745363969777,0.0485,92897.0,92879.0,0.427565]
[1745363970205,0.0485,92897.0,92879.0,0.106908]
[1745363970413,0.0495,92897.0,92879.0,0.272872]
[1745363971582,0.0495,92897.0,92874.0,0.01454085]
[1745363971788,0.0495,92897.0,92874.0,0.37238585]
[1745363971987,0.0495,92897.0,92876.0,0.01454085]
[1745363972261,0.0495,92897.0,92877.0,0.22673674]
[1745363972460,0.0485,92897.0,92873.0,0.550773]
[1745363972716,0.0485,92897.0,92871.0,0.08614099]
[1745363972912,0.0485,92897.0,92874.0,0.001]
[1745363973124,0.0485,92897.0,92875.0,0.524786]
[1745363973381,0.0485,92897.0,92873.0,0.710364]
[1745363973552,0.0485,92897.0,92874.0,0.556005]
[1745363973793,0.0485,92897.0,92873.0,0.592015]
[1745363973996,0.0485,92897.0,92873.0,0.67815341]
[1745363974197,0.0485,92897.0,92881.0,0.01454085]
[1745363974403,0.0485,92897.0,92881.0,0.10067256]
[1745363974728,0.0485,92897.0,92882.0,0.79833]
[1745363975340,0.0485,92897.0,92874.0,0.32235656]
[1745363975544,0.0495,92897.0,92876.0,0.435804]
[1745363975745,0.0495,92897.0,92876.0,0.52194035]
[1745363975949,0.0495,92897.0,92877.0,0.461456]
[1745363976097,0.0515,92897.0,92877.0,0.461456]
[1745363976296,0.0505,92897.0,92878.0,0.08613449]
[1745363976508,0.0505,92897.0,92880.0,0.08613239]
[1745363976709,0.0505,92897.0,92881.0,0.0021529]
[1745363977742,0.0495,92897.0,92878.0,0.08613449]
[1745363978281,0.0495,92897.0,92880.0,0.08613224]
[1745363978699,0.0505,92897.0,92880.0,0.08613224]
[1745363978895,0.0505,92897.0,92883.0,0.08612984]
[1745363979087,0.0495,92897.0,92883.0,0.08612984]
[1745363979286,0.0495,92897.0,92880.0,0.08613224]
[1745363979287,0.0505,92897.0,92880.0,0.08613224]
[1745363979616,0.0515,92897.0,92881.0,0.412102]
[1745363979840,0.003,92897.0,92895.0,0.08611787]
[1745363980069,0.0008496,92910.0,92900.0,0.01076426]
[1745363980278,0.0008496,92910.0,92904.0,0.01076379]
[1745363980495,0.00013838,92910.0,92909.0,0.27536301]
[1745363980711,0.00013838,92910.0,92908.0,0.08610668]
[1745363980931,0.00013838,92910.0,92909.0,1.70712657]
[1745363981134,0.00013838,92910.0,92909.0,0.45696241]
[1745363982030,0.00013838,92910.0,92909.0,0.56526546]
[1745363982242,0.00013838,92910.0,92909.0,0.56626546]
[1745363983083,0.00013838,92910.0,92909.0,0.56826546]
[1745363983286,0.00013838,92910.0,92909.0,0.57630173]
[1745363983628,0.00013838,92910.0,92909.0,0.57930173]
[1745363984253,0.00013838,92910.0,92909.0,0.57730173]
[1745363984658,0.00013838,92910.0,92909.0,0.58030173]
[1745363985919,0.00013838,92910.0,92909.0,0.56038273]
[1745363986325,0.00013838,92910.0,92909.0,0.46023673]
[1745363986607,0.00013838,92910.0,92909.0,0.57554973]
[1745363987751,0.00013838,92910.0,92909.0,0.57254973]
[1745363987926,0.00013838,92910.0,92909.0,0.56954973]
[1745363988080,0.00013838,92910.0,92909.0,0.57254973]
[1745363988278,0.00013838,92910.0,92909.0,0.45723673]
[1745363988484,0.00013838,92910.0,92909.0,0.44530083]
[1745363988728,0.00013838,92910.0,92909.0,0.32635656]
[1745363988925,0.04593838,92910.0,92909.0,0.32835656]
[1745363989133,0.04593838,92910.0,92909.0,0.006]
[1745363989763,0.15424143,92910.0,92909.0,0.004]
[1745363989941,0.15724143,92910.0,92909.0,0.004]
[1745363991088,0.15724143,92910.0,92909.0,0.001]
[1745363991419,0.05093838,92910.0,92909.0,0.001]
[1745364000504,0.15924143,92910.0,92909.0,0.001]
[1745364001952,0.15724143,92910.0,92909.0,0.001]
[1745364002363,0.16224143,92910.0,92909.0,0.002]
[1745364002567,0.15924143,92910.0,92909.0,0.002]
[1745364002967,0.17224143,92910.0,92909.0,0.004]
[1745364003388,0.16524143,92910.0,92909.0,0.003]
[1745364004195,0.17224143,92910.0,92909.0,0.004]
[1745364004824,0.06393838,92910.0,92909.0,0.004]
[1745364005055,0.01813838,92910.0,92909.0,0.004]
[1745364005650,0.00713838,92910.0,92909.0,0.002]
[1745364005850,0.00013838,92910.0,92909.0,0.001]
[1745364006054,0.00813838,92910.0,92909.0,0.002]
[1745364006291,0.00713838,92910.0,92909.0,0.002]
[1745364007051,0.00813838,92910.0,92890.0,0.32235656]
[1745364007255,0.00813838,92910.0,92891.0,1.04397]
[1745364007927,0.00813838,92910.0,92891.0,0.908481]
[1745364008123,0.00813838,92910.0,92891.0,0.909395]
[1745364008484,0.006,92910.0,92891.0,0.909395]
[1745364008720,0.006,92910.0,92892.0,0.0021526]
[1745364008954,0.006,92910.0,92900.0,0.27536301]